[Event "*** Titled Tuesday 3|2 Blitz"]
[Site "Chess.com"]
[Date "2016.02.02"]
[Round "9"]
[White "APL2001"]
[Black "AnthonyWirig"]
[Result "0-1"]
[WhiteElo "2173"]
[BlackElo "2501"]
[TimeControl "180+2"]
[EndTime "12:59:29 PST"]
[Termination "AnthonyWirig won by resignation"]

1. e4 {[%clk 0:02:52.7]} 1... d5 {[%clk 0:02:56.7]} 2. exd5 {[%clk 0:02:53.2]}
2... Qxd5 {[%clk 0:02:50.8]} 3. Nc3 {[%clk 0:02:53.7]} 3... Qd6 {[%clk
0:02:51.7]} 4. d4 {[%clk 0:02:54.3]} 4... g6 {[%clk 0:02:52.3]} 5. Nf3 {[%clk
0:02:55.1]} 5... Bg7 {[%clk 0:02:50.7]} 6. Be3 {[%clk 0:02:47.9]} 6... Nh6
{[%clk 0:02:50]} 7. Bd3 {[%clk 0:02:44.4]} 7... Nf5 {[%clk 0:02:49.5]} 8. Bxf5
{[%clk 0:02:45]} 8... Bxf5 {[%clk 0:02:51.4]} 9. O-O {[%clk 0:02:46.1]} 9... O-O
{[%clk 0:02:52.2]} 10. Re1 {[%clk 0:02:36.2]} 10... a6 {[%clk 0:02:52.1]} 11.
Ne2 {[%clk 0:02:34.7]} 11... Nc6 {[%clk 0:02:51.5]} 12. c3 {[%clk 0:02:34.2]}
12... Rfe8 {[%clk 0:02:48.3]} 13. Ng3 {[%clk 0:02:34.9]} 13... Bg4 {[%clk
0:02:48.9]} 14. h3 {[%clk 0:02:35.1]} 14... Bxf3 {[%clk 0:02:50.1]} 15. Qxf3
{[%clk 0:02:35.8]} 15... e5 {[%clk 0:02:51.7]} 16. d5 {[%clk 0:02:31]} 16... Ne7
{[%clk 0:02:47.9]} 17. c4 {[%clk 0:02:29.4]} 17... f5 {[%clk 0:02:48.9]} 18. Bd2
{[%clk 0:02:11.7]} 18... e4 {[%clk 0:02:49.4]} 19. Qb3 {[%clk 0:02:12.7]} 19...
b5 {[%clk 0:02:48.9]} 20. cxb5 {[%clk 0:01:46.5]} 20... axb5 {[%clk 0:02:45.4]}
21. Qxb5 {[%clk 0:01:31.5]} 21... Qxd5 {[%clk 0:02:30.6]} 22. Qxd5+ {[%clk
0:00:57]} 22... Nxd5 {[%clk 0:02:32.5]} 23. Bc3 {[%clk 0:00:57]} 23... Nxc3
{[%clk 0:02:33.1]} 24. bxc3 {[%clk 0:00:55.5]} 24... Bxc3 {[%clk 0:02:35]} 25.
Rec1 {[%clk 0:00:56.6]} 25... Bxa1 {[%clk 0:02:35.8]} 26. Rxa1 {[%clk
0:00:58.3]} 26... Ra3 {[%clk 0:02:35.8]} 27. Rc1 {[%clk 0:00:58.6]} 27... Re7
{[%clk 0:02:33.3]} 28. Ne2 {[%clk 0:00:57]} 28... Rxa2 {[%clk 0:02:33.3]} 29.
Nf4 {[%clk 0:00:57.6]} 29... Rd2 {[%clk 0:02:32.2]} 30. h4 {[%clk 0:00:54.2]}
30... Kf7 {[%clk 0:02:33]} 31. g3 {[%clk 0:00:55.2]} 31... h6 {[%clk 0:02:29.7]}
32. Rc6 {[%clk 0:00:54.9]} 32... Rd6 {[%clk 0:02:29.8]} 33. Rc5 {[%clk 0:00:55]}
33... Kf6 {[%clk 0:02:30.2]} 34. Nd5+ {[%clk 0:00:54.8]} 34... Rxd5 {[%clk
0:02:29.1]} 35. Rxd5 {[%clk 0:00:56.1]} 35... Ke6 {[%clk 0:02:28.1]} 36. Ra5
{[%clk 0:00:54.5]} 36... c6 {[%clk 0:02:28.5]} 37. Ra8 {[%clk 0:00:54.6]} 37...
Rc7 {[%clk 0:02:27.8]} 38. Rh8 {[%clk 0:00:51.9]} 38... h5 {[%clk 0:02:28.5]}
39. Kf1 {[%clk 0:00:51]} 39... c5 {[%clk 0:02:27.1]} 40. Ke2 {[%clk 0:00:52.3]}
40... Rd7 {[%clk 0:02:23.5]} 41. Re8+ {[%clk 0:00:51.4]} 41... Kd5 {[%clk
0:02:24.3]} 42. Rg8 {[%clk 0:00:52.3]} 42... Rd6 {[%clk 0:02:25.4]} 43. Ra8
{[%clk 0:00:50.6]} 43... Kc4 {[%clk 0:02:25.9]} 44. Ra1 {[%clk 0:00:45.7]} 44...
Kb3 {[%clk 0:02:26.7]} 45. Ke3 {[%clk 0:00:34.9]} 45... c4 {[%clk 0:02:27.3]}
46. Rb1+ {[%clk 0:00:33.7]} 46... Kc2 {[%clk 0:02:28]} 47. Rb8 {[%clk 0:00:34]}
47... c3 {[%clk 0:02:29.2]} 48. Rc8 {[%clk 0:00:34.5]} 48... Kb2 {[%clk
0:02:30]} 49. Rb8+ {[%clk 0:00:35.1]} 49... Kc1 {[%clk 0:02:31.1]} 50. Rc8
{[%clk 0:00:35.7]} 50... c2 {[%clk 0:02:32.5]} 51. Ke2 {[%clk 0:00:32]} 51...
Rb6 {[%clk 0:02:28.1]} 0-1

[Event "*** Titled Tuesday 3|2 Blitz"]
[Site "Chess.com"]
[Date "2016.02.02"]
[Round "9"]
[White "manubibi"]
[Black "kesarev"]
[Result "1-0"]
[WhiteElo "2383"]
[BlackElo "2164"]
[TimeControl "180+2"]
[EndTime "12:59:33 PST"]
[Termination "manubibi won by resignation"]

1. e4 {[%clk 0:03:01.9]} 1... e5 {[%clk 0:03:00.2]} 2. Nf3 {[%clk 0:03:00.4]}
2... Nc6 {[%clk 0:02:59.8]} 3. Bb5 {[%clk 0:02:59.3]} 3... Nd4 {[%clk
0:03:00.1]} 4. Bc4 {[%clk 0:02:56.1]} 4... Nxf3+ {[%clk 0:02:55.4]} 5. Qxf3
{[%clk 0:02:56.6]} 5... Nf6 {[%clk 0:02:56.5]} 6. O-O {[%clk 0:02:53.7]} 6... d6
{[%clk 0:02:56.9]} 7. d3 {[%clk 0:02:48]} 7... Bg4 {[%clk 0:02:47.1]} 8. Qg3
{[%clk 0:02:46.2]} 8... h5 {[%clk 0:02:46.5]} 9. f4 {[%clk 0:02:47.1]} 9... h4
{[%clk 0:02:35.5]} 10. Qf2 {[%clk 0:02:41.2]} 10... h3 {[%clk 0:02:17.7]} 11. g3
{[%clk 0:02:18.3]} 11... Qd7 {[%clk 0:01:55.5]} 12. Nc3 {[%clk 0:02:17.5]} 12...
c6 {[%clk 0:01:46.6]} 13. Be3 {[%clk 0:01:59.9]} 13... b5 {[%clk 0:01:22.7]} 14.
Bb3 {[%clk 0:01:56.7]} 14... a5 {[%clk 0:01:22.7]} 15. a3 {[%clk 0:01:53.7]}
15... Be7 {[%clk 0:00:53.3]} 16. d4 {[%clk 0:01:54.7]} 16... exd4 {[%clk
0:00:40.6]} 17. Bxd4 {[%clk 0:01:55.8]} 17... O-O {[%clk 0:00:31.7]} 18. e5
{[%clk 0:01:53.1]} 18... Ne8 {[%clk 0:00:16.3]} 19. Ne4 {[%clk 0:01:33.9]} 19...
c5 {[%clk 0:00:12]} 20. exd6 {[%clk 0:01:34.4]} 20... cxd4 {[%clk 0:00:11.3]}
21. dxe7 {[%clk 0:01:34.8]} 21... Qxe7 {[%clk 0:00:12.1]} 22. Rfe1 {[%clk
0:01:28.7]} 22... Rd8 {[%clk 0:00:07]} 23. f5 {[%clk 0:01:26.5]} 23... Qd7
{[%clk 0:00:04.6]} 24. f6 {[%clk 0:01:17.6]} 24... g6 {[%clk 0:00:03.8]} 25. Qf4
{[%clk 0:01:17.7]} 25... Qf5 {[%clk 0:00:03.8]} 26. Rf1 {[%clk 0:00:56.8]} 26...
Qxf4 {[%clk 0:00:03.7]} 27. Rxf4 {[%clk 0:00:58.7]} 27... Bf5 {[%clk 0:00:05.3]}
28. Re1 {[%clk 0:00:58.6]} 28... Nd6 {[%clk 0:00:06.7]} 29. Ng5 {[%clk
0:00:54.3]} 29... Rd7 {[%clk 0:00:08.6]} 30. Rxd4 {[%clk 0:00:54.8]} 30... Rdd8
{[%clk 0:00:10.5]} 31. Re7 {[%clk 0:00:54.7]} 31... Nc4 {[%clk 0:00:12.4]} 32.
Rxd8 {[%clk 0:00:49.2]} 32... Nd6 {[%clk 0:00:14.3]} 33. Bc4 {[%clk 0:00:51]}
33... Nxc4 {[%clk 0:00:16.2]} 34. Rxf8+ {[%clk 0:00:50.3]} 34... Kxf8 {[%clk
0:00:16.7]} 35. Rxf7+ {[%clk 0:00:51.8]} 35... Kg8 {[%clk 0:00:12]} 36. Rg7+
{[%clk 0:00:50.2]} 36... Kf8 {[%clk 0:00:12.9]} 37. Nh7+ {[%clk 0:00:51.4]}
37... Ke8 {[%clk 0:00:14.3]} 38. f7+ {[%clk 0:00:53.1]} 1-0

[Event "*** Titled Tuesday 3|2 Blitz"]
[Site "Chess.com"]
[Date "2016.02.02"]
[Round "9"]
[White "GeorgMeier"]
[Black "MITerryble"]
[Result "1-0"]
[WhiteElo "2701"]
[BlackElo "2618"]
[TimeControl "180+2"]
[EndTime "13:00:15 PST"]
[Termination "GeorgMeier won by resignation"]

1. Nf3 {[%clk 0:03:01.9]} 1... Nf6 {[%clk 0:02:55.3]} 2. g3 {[%clk 0:02:48.8]}
2... d5 {[%clk 0:02:56]} 3. Bg2 {[%clk 0:02:48.2]} 3... Bg4 {[%clk 0:02:56.5]}
4. c4 {[%clk 0:02:43.7]} 4... c6 {[%clk 0:02:49.1]} 5. O-O {[%clk 0:02:44.4]}
5... Bxf3 {[%clk 0:02:47]} 6. Bxf3 {[%clk 0:02:45]} 6... e6 {[%clk 0:02:44.9]}
7. Qc2 {[%clk 0:02:40.6]} 7... Nbd7 {[%clk 0:02:45.8]} 8. d4 {[%clk 0:02:40.3]}
8... Be7 {[%clk 0:02:44.6]} 9. b3 {[%clk 0:02:37.5]} 9... O-O {[%clk 0:02:45]}
10. Bb2 {[%clk 0:02:38.8]} 10... Rc8 {[%clk 0:02:42.4]} 11. Nd2 {[%clk
0:02:36.5]} 11... Bb4 {[%clk 0:02:34.3]} 12. a3 {[%clk 0:02:35.9]} 12... Bxd2
{[%clk 0:02:35.3]} 13. Qxd2 {[%clk 0:02:36.7]} 13... Qe7 {[%clk 0:02:23.9]} 14.
Rfd1 {[%clk 0:02:31]} 14... Rfd8 {[%clk 0:02:24.4]} 15. Qe3 {[%clk 0:02:27.4]}
15... b5 {[%clk 0:02:19.9]} 16. cxb5 {[%clk 0:02:10.8]} 16... cxb5 {[%clk
0:02:20.5]} 17. a4 {[%clk 0:02:12.3]} 17... b4 {[%clk 0:02:05.2]} 18. Rac1
{[%clk 0:02:12.1]} 18... Qd6 {[%clk 0:02:00.2]} 19. Kg2 {[%clk 0:01:47.7]} 19...
h6 {[%clk 0:01:58.9]} 20. Qd2 {[%clk 0:01:44.6]} 20... Qb8 {[%clk 0:01:49.6]}
21. Qd3 {[%clk 0:01:38.9]} 21... Qb7 {[%clk 0:01:38.8]} 22. e3 {[%clk
0:01:37.9]} 22... Ne4 {[%clk 0:01:35.5]} 23. Be2 {[%clk 0:01:32.8]} 23... Rxc1
{[%clk 0:01:24]} 24. Rxc1 {[%clk 0:01:33.5]} 24... Rc8 {[%clk 0:01:25.2]} 25.
Qb5 {[%clk 0:01:18.4]} 25... Rc7 {[%clk 0:00:44.8]} 26. Qxb7 {[%clk 0:01:11.7]}
26... Rxb7 {[%clk 0:00:45.9]} 27. a5 {[%clk 0:01:12.8]} 27... Ndf6 {[%clk
0:00:34.1]} 28. a6 {[%clk 0:01:08.1]} 28... Re7 {[%clk 0:00:27.6]} 29. Rc8+
{[%clk 0:01:04.1]} 29... Kh7 {[%clk 0:00:22.7]} 30. Bd3 {[%clk 0:01:01.9]} 30...
g6 {[%clk 0:00:23.4]} 31. Rb8 {[%clk 0:00:57.1]} 31... Kg7 {[%clk 0:00:11.5]}
32. Rxb4 {[%clk 0:00:52.4]} 32... Nd6 {[%clk 0:00:12.5]} 33. Ba3 {[%clk
0:00:47.9]} 33... Rd7 {[%clk 0:00:12.7]} 34. Rb8 {[%clk 0:00:47.6]} 34... Nfe4
{[%clk 0:00:12]} 35. f3 {[%clk 0:00:47.2]} 35... Nc3 {[%clk 0:00:10.7]} 36. Bc5
{[%clk 0:00:45.4]} 36... Nd1 {[%clk 0:00:09.4]} 37. e4 {[%clk 0:00:46.4]} 37...
dxe4 {[%clk 0:00:10.1]} 38. fxe4 {[%clk 0:00:47.7]} 38... f5 {[%clk 0:00:09.3]}
39. e5 {[%clk 0:00:43.4]} 39... Ne4 {[%clk 0:00:10.6]} 40. Rb7 {[%clk
0:00:40.4]} 40... Rf7 {[%clk 0:00:12.5]} 41. Rxa7 {[%clk 0:00:39.5]} 41... Rd7
{[%clk 0:00:14.4]} 42. Rxd7+ {[%clk 0:00:40.4]} 1-0

[Event "*** Titled Tuesday 3|2 Blitz"]
[Site "Chess.com"]
[Date "2016.02.02"]
[Round "9"]
[White "kharposh"]
[Black "oskariot"]
[Result "0-1"]
[WhiteElo "2057"]
[BlackElo "2315"]
[TimeControl "180+2"]
[EndTime "13:00:20 PST"]
[Termination "oskariot won by resignation"]

1. e4 {[%clk 0:03:00]} 1... c5 {[%clk 0:03:01.9]} 2. Nf3 {[%clk 0:03:00.3]} 2...
d6 {[%clk 0:03:03.1]} 3. d4 {[%clk 0:03:00.9]} 3... cxd4 {[%clk 0:03:05]} 4.
Nxd4 {[%clk 0:03:02.3]} 4... Nf6 {[%clk 0:03:06.5]} 5. Nc3 {[%clk 0:03:03.6]}
5... Nc6 {[%clk 0:03:08.2]} 6. Bc4 {[%clk 0:03:04.1]} 6... e6 {[%clk 0:03:08.9]}
7. Bb3 {[%clk 0:03:05.3]} 7... a6 {[%clk 0:03:10]} 8. f4 {[%clk 0:03:06.6]} 8...
Be7 {[%clk 0:03:11.3]} 9. f5 {[%clk 0:03:08]} 9... e5 {[%clk 0:03:09]} 10. Nde2
{[%clk 0:03:09.3]} 10... Na5 {[%clk 0:03:07.9]} 11. Nd5 {[%clk 0:03:00.1]} 11...
Nxb3 {[%clk 0:03:06.7]} 12. Nxf6+ {[%clk 0:03:00.1]} 12... Bxf6 {[%clk
0:03:05.9]} 13. axb3 {[%clk 0:03:01.2]} 13... d5 {[%clk 0:03:07.5]} 14. exd5
{[%clk 0:02:55.1]} 14... Bxf5 {[%clk 0:03:02.7]} 15. O-O {[%clk 0:02:55.5]}
15... Bg6 {[%clk 0:03:04.1]} 16. c4 {[%clk 0:02:53.9]} 16... O-O {[%clk
0:03:04.2]} 17. c5 {[%clk 0:02:49.3]} 17... e4 {[%clk 0:03:03.2]} 18. d6 {[%clk
0:02:44.2]} 18... Be5 {[%clk 0:02:47.2]} 19. Qd5 {[%clk 0:02:38.4]} 19... Re8
{[%clk 0:02:45.1]} 20. Nc3 {[%clk 0:02:35.8]} 20... Rc8 {[%clk 0:02:43.9]} 21.
b4 {[%clk 0:02:33.8]} 21... Qd7 {[%clk 0:02:37.9]} 22. Bf4 {[%clk 0:02:30.1]}
22... Bxf4 {[%clk 0:01:57.6]} 23. Rxf4 {[%clk 0:02:29.7]} 23... e3 {[%clk
0:01:59.5]} 24. Re1 {[%clk 0:02:22.5]} 24... Re6 {[%clk 0:01:55.3]} 25. Ne4
{[%clk 0:02:15.7]} 25... Rce8 {[%clk 0:01:48.9]} 26. Rxe3 {[%clk 0:02:14]} 26...
Re5 {[%clk 0:01:43.5]} 27. Qc4 {[%clk 0:02:11.3]} 27... Qc6 {[%clk 0:01:31.8]}
28. Ng5 {[%clk 0:01:21.7]} 28... Rxe3 {[%clk 0:01:26.6]} 29. Rxf7 {[%clk
0:01:17.4]} 29... Kh8 {[%clk 0:01:26.9]} 30. d7 {[%clk 0:01:10.9]} 30... Re1+
{[%clk 0:00:33.9]} 31. Kf2 {[%clk 0:00:53.3]} 31... R8e2+ {[%clk 0:00:34.1]} 32.
Qxe2 {[%clk 0:00:53.9]} 32... Rxe2+ {[%clk 0:00:36]} 33. Kxe2 {[%clk 0:00:53.3]}
33... Qxg2+ {[%clk 0:00:37.2]} 34. Rf2 {[%clk 0:00:53.5]} 34... Qg4+ {[%clk
0:00:33.9]} 35. Kf1 {[%clk 0:00:53.3]} 35... Bd3+ {[%clk 0:00:28.7]} 36. Ke1
{[%clk 0:00:54.3]} 36... Qg1+ {[%clk 0:00:25.8]} 37. Kd2 {[%clk 0:00:54.1]}
37... Qxf2+ {[%clk 0:00:27.2]} 38. Kxd3 {[%clk 0:00:49.8]} 38... Qf5+ {[%clk
0:00:28]} 39. Kc4 {[%clk 0:00:49.3]} 39... Qxd7 {[%clk 0:00:29.9]} 40. Ne4
{[%clk 0:00:48.5]} 40... Qb5+ {[%clk 0:00:28.7]} 41. Kc3 {[%clk 0:00:48.7]}
41... h5 {[%clk 0:00:30.4]} 42. Nd6 {[%clk 0:00:49.7]} 42... Qc6 {[%clk
0:00:31.4]} 43. Nf7+ {[%clk 0:00:49.4]} 43... Kh7 {[%clk 0:00:31.2]} 44. Ne5
{[%clk 0:00:49.5]} 44... Qd5 {[%clk 0:00:28.8]} 45. Nd3 {[%clk 0:00:46.8]} 45...
g5 {[%clk 0:00:25.8]} 0-1

[Event "*** Titled Tuesday 3|2 Blitz"]
[Site "Chess.com"]
[Date "2016.02.02"]
[Round "9"]
[White "Dlugy"]
[Black "ChadaevNikolay"]
[Result "1/2-1/2"]
[WhiteElo "2563"]
[BlackElo "2530"]
[TimeControl "180+2"]
[EndTime "13:01:04 PST"]
[Termination "Game drawn by repetition"]

1. d4 {[%clk 0:03:01.9]} 1... Nf6 {[%clk 0:03:00.4]} 2. Bf4 {[%clk 0:03:02.5]}
2... g6 {[%clk 0:02:57.3]} 3. Nc3 {[%clk 0:03:02.9]} 3... d5 {[%clk 0:02:55.6]}
4. Qd2 {[%clk 0:03:04.1]} 4... c6 {[%clk 0:02:48.7]} 5. f3 {[%clk 0:03:03.9]}
5... Bf5 {[%clk 0:02:42.9]} 6. g4 {[%clk 0:03:00.4]} 6... Be6 {[%clk 0:02:43.2]}
7. h4 {[%clk 0:02:45.1]} 7... h5 {[%clk 0:02:36]} 8. g5 {[%clk 0:02:46.3]} 8...
Nfd7 {[%clk 0:02:36.7]} 9. e4 {[%clk 0:02:42.4]} 9... Bg7 {[%clk 0:02:37.4]} 10.
O-O-O {[%clk 0:02:37]} 10... O-O {[%clk 0:02:36.8]} 11. Kb1 {[%clk 0:02:31.7]}
11... a5 {[%clk 0:02:19.9]} 12. Be3 {[%clk 0:02:21.8]} 12... Nb6 {[%clk
0:02:00.1]} 13. Nh3 {[%clk 0:02:15.4]} 13... Bxh3 {[%clk 0:01:57]} 14. Rxh3
{[%clk 0:02:16.4]} 14... e6 {[%clk 0:01:51.6]} 15. a4 {[%clk 0:01:34.3]} 15...
Qe7 {[%clk 0:01:44.2]} 16. b3 {[%clk 0:01:34.2]} 16... Rd8 {[%clk 0:01:43.9]}
17. e5 {[%clk 0:01:34.7]} 17... N8d7 {[%clk 0:01:36.1]} 18. f4 {[%clk
0:01:26.1]} 18... Rdc8 {[%clk 0:01:18.8]} 19. Bf2 {[%clk 0:01:26.6]} 19... Rc7
{[%clk 0:01:03.6]} 20. Be1 {[%clk 0:01:26.9]} 20... Qf8 {[%clk 0:01:00.6]} 21.
Ka2 {[%clk 0:01:26.5]} 21... Nc8 {[%clk 0:01:01.2]} 22. Qc1 {[%clk 0:01:27.3]}
22... Ne7 {[%clk 0:01:01.8]} 23. Qa3 {[%clk 0:01:28.4]} 23... Qd8 {[%clk
0:00:58.8]} 24. Bd3 {[%clk 0:01:28.5]} 24... Rcc8 {[%clk 0:00:51.8]} 25. Ne2
{[%clk 0:01:27.4]} 25... Bf8 {[%clk 0:00:39.9]} 26. Qb2 {[%clk 0:01:28.6]} 26...
Rab8 {[%clk 0:00:26.3]} 27. c4 {[%clk 0:01:28.5]} 27... c5 {[%clk 0:00:19.1]}
28. Bc3 {[%clk 0:01:20.2]} 28... cxd4 {[%clk 0:00:10.7]} 29. Nxd4 {[%clk
0:01:17.7]} 29... Nc5 {[%clk 0:00:12.6]} 30. Be2 {[%clk 0:01:11.1]} 30... Qb6
{[%clk 0:00:13.5]} 31. Nb5 {[%clk 0:01:11.8]} 31... Nf5 {[%clk 0:00:14.5]} 32.
cxd5 {[%clk 0:01:11.5]} 32... exd5 {[%clk 0:00:14.9]} 33. Rxd5 {[%clk
0:01:11.8]} 33... Ne4 {[%clk 0:00:15.8]} 34. Bc4 {[%clk 0:00:58.2]} 34... Nxc3+
{[%clk 0:00:13.6]} 35. Qxc3 {[%clk 0:00:57.1]} 35... Bb4 {[%clk 0:00:14.5]} 36.
Qf3 {[%clk 0:00:47.5]} 36... Rd8 {[%clk 0:00:14.8]} 37. Rh2 {[%clk 0:00:43.8]}
37... Qg1 {[%clk 0:00:12.1]} 38. Re2 {[%clk 0:00:37.1]} 38... Kg7 {[%clk
0:00:11]} 39. Qd3 {[%clk 0:00:33.6]} 39... Qb6 {[%clk 0:00:09.1]} 40. Nd6 {[%clk
0:00:25.2]} 40... Nxd6 {[%clk 0:00:08.7]} 41. exd6 {[%clk 0:00:27.1]} 41... Rxd6
{[%clk 0:00:09.8]} 42. Re7 {[%clk 0:00:25.9]} 42... Qf2+ {[%clk 0:00:09]} 43.
Kb1 {[%clk 0:00:21.6]} 43... Rxd5 {[%clk 0:00:09.8]} 44. Rxf7+ {[%clk
0:00:21.2]} 44... Kxf7 {[%clk 0:00:08.9]} 45. Qxd5+ {[%clk 0:00:22.8]} 45... Kg7
{[%clk 0:00:10.1]} 46. Qf7+ {[%clk 0:00:23.6]} 46... Kh8 {[%clk 0:00:10.9]} 47.
Qf6+ {[%clk 0:00:24.7]} 47... Kh7 {[%clk 0:00:12.5]} 48. Qf7+ {[%clk 0:00:25.6]}
48... Kh8 {[%clk 0:00:13.7]} 49. Qf6+ {[%clk 0:00:25.2]} 49... Kh7 {[%clk
0:00:14.9]} 50. Qf7+ {[%clk 0:00:26.4]} 50... Kh8 {[%clk 0:00:15.9]} 51. Qf6+
{[%clk 0:00:27.2]} 51... Kh7 {[%clk 0:00:17.2]} 52. Qf7+ {[%clk 0:00:27.5]}
1/2-1/2

[Event "*** Titled Tuesday 3|2 Blitz"]
[Site "Chess.com"]
[Date "2016.02.02"]
[Round "9"]
[White "Zazuliak"]
[Black "HovmoellerHest"]
[Result "0-1"]
[WhiteElo "2320"]
[BlackElo "2196"]
[TimeControl "180+2"]
[EndTime "13:01:15 PST"]
[Termination "HovmoellerHest won by resignation"]

1. d4 {[%clk 0:02:59.9]} 1... Nf6 {[%clk 0:02:59.9]} 2. c4 {[%clk 0:02:59.8]}
2... e6 {[%clk 0:03:00.5]} 3. Nc3 {[%clk 0:03:00.7]} 3... Bb4 {[%clk 0:03:01.1]}
4. Qc2 {[%clk 0:03:01.3]} 4... O-O {[%clk 0:03:01.5]} 5. a3 {[%clk 0:02:56]}
5... Bxc3+ {[%clk 0:03:01.9]} 6. Qxc3 {[%clk 0:02:56.4]} 6... Ne4 {[%clk
0:03:02.4]} 7. Qc2 {[%clk 0:02:56.5]} 7... f5 {[%clk 0:03:03.4]} 8. g3 {[%clk
0:02:52.8]} 8... b6 {[%clk 0:03:04.4]} 9. Bg2 {[%clk 0:02:49.9]} 9... Bb7 {[%clk
0:03:04.7]} 10. Nf3 {[%clk 0:02:50.6]} 10... d6 {[%clk 0:03:04.7]} 11. Ng5
{[%clk 0:02:34]} 11... Qf6 {[%clk 0:02:58.8]} 12. O-O {[%clk 0:02:23.5]} 12...
d5 {[%clk 0:02:39.6]} 13. Nxe4 {[%clk 0:02:20.2]} 13... dxe4 {[%clk 0:02:40.4]}
14. e3 {[%clk 0:02:01.1]} 14... Nd7 {[%clk 0:02:38]} 15. b4 {[%clk 0:01:58.2]}
15... e5 {[%clk 0:02:14.6]} 16. Bb2 {[%clk 0:01:58.5]} 16... exd4 {[%clk
0:02:08.7]} 17. Bxd4 {[%clk 0:01:58.9]} 17... Ne5 {[%clk 0:02:05.5]} 18. Qc3
{[%clk 0:01:52.4]} 18... Rae8 {[%clk 0:02:01.1]} 19. Rfd1 {[%clk 0:01:43.3]}
19... Qe6 {[%clk 0:01:59.6]} 20. Bxe5 {[%clk 0:01:24.9]} 20... Qxe5 {[%clk
0:02:00.4]} 21. Qxe5 {[%clk 0:01:25.9]} 21... Rxe5 {[%clk 0:02:01.7]} 22. Rd7
{[%clk 0:01:25.8]} 22... Rf7 {[%clk 0:01:58.3]} 23. Rad1 {[%clk 0:01:26.3]}
23... Ree7 {[%clk 0:01:57.1]} 24. Rd8+ {[%clk 0:01:26]} 24... Rf8 {[%clk
0:01:58.1]} 25. c5 {[%clk 0:01:21.5]} 25... Ba6 {[%clk 0:01:33.4]} 26. Bf1
{[%clk 0:01:09.8]} 26... Bxf1 {[%clk 0:01:29.7]} 27. Kxf1 {[%clk 0:01:10.6]}
27... b5 {[%clk 0:01:24.4]} 28. Ke2 {[%clk 0:01:05.8]} 28... a6 {[%clk
0:01:13.2]} 29. R1d7 {[%clk 0:00:59.1]} 29... Rxd7 {[%clk 0:01:09.3]} 30. Rxd7
{[%clk 0:00:59.4]} 30... Rf7 {[%clk 0:01:10.7]} 31. Rd5 {[%clk 0:00:58.3]} 31...
g6 {[%clk 0:01:07.8]} 32. Kd2 {[%clk 0:00:58.2]} 32... Kg7 {[%clk 0:01:07.6]}
33. Kc3 {[%clk 0:00:57.4]} 33... Re7 {[%clk 0:00:49.3]} 34. Kd4 {[%clk
0:00:54.1]} 34... Kf7 {[%clk 0:00:45.3]} 35. c6 {[%clk 0:00:54.4]} 35... Kf6
{[%clk 0:00:37.2]} 36. h4 {[%clk 0:00:49.9]} 36... h5 {[%clk 0:00:37.2]} 37. Kc5
{[%clk 0:00:47.5]} 37... Re5 {[%clk 0:00:34.1]} 38. Kd4 {[%clk 0:00:48.1]} 38...
Rxd5+ {[%clk 0:00:27.1]} 39. Kxd5 {[%clk 0:00:48]} 39... Kf7 {[%clk 0:00:28.3]}
40. Ke5 {[%clk 0:00:35.4]} 40... Ke7 {[%clk 0:00:29]} 41. Kd5 {[%clk 0:00:35.3]}
41... Kf6 {[%clk 0:00:29.2]} 42. Kd4 {[%clk 0:00:23.3]} 42... Ke6 {[%clk
0:00:30]} 43. Kc5 {[%clk 0:00:23.8]} 43... Ke5 {[%clk 0:00:24.2]} 44. a4 {[%clk
0:00:17.8]} 44... bxa4 {[%clk 0:00:25.1]} 45. b5 {[%clk 0:00:16.9]} 45... axb5
{[%clk 0:00:26]} 46. Kxb5 {[%clk 0:00:18.1]} 46... a3 {[%clk 0:00:27.3]} 47. Ka6
{[%clk 0:00:20]} 47... Kd6 {[%clk 0:00:28.2]} 48. Kb7 {[%clk 0:00:21.9]} 48...
a2 {[%clk 0:00:29.5]} 0-1

[Event "*** Titled Tuesday 3|2 Blitz"]
[Site "Chess.com"]
[Date "2016.02.02"]
[Round "9"]
[White "stefanodinn"]
[Black "Makalexa"]
[Result "1-0"]
[WhiteElo "2150"]
[BlackElo "2064"]
[TimeControl "180+2"]
[EndTime "13:01:15 PST"]
[Termination "stefanodinn won on time"]

1. e4 {[%clk 0:02:45.5]} 1... c5 {[%clk 0:02:59.8]} 2. Ne2 {[%clk 0:02:39.1]}
2... g6 {[%clk 0:02:57.4]} 3. d4 {[%clk 0:02:33.8]} 3... Bg7 {[%clk 0:02:57.3]}
4. dxc5 {[%clk 0:02:29.9]} 4... Qa5+ {[%clk 0:02:51.1]} 5. Nbc3 {[%clk
0:02:30.3]} 5... Qxc5 {[%clk 0:02:51.7]} 6. g3 {[%clk 0:02:30.4]} 6... Nc6
{[%clk 0:02:50.7]} 7. Bg2 {[%clk 0:02:31.1]} 7... a6 {[%clk 0:02:47.4]} 8. O-O
{[%clk 0:02:31.2]} 8... Nf6 {[%clk 0:02:46.6]} 9. Be3 {[%clk 0:02:30.9]} 9...
Qa5 {[%clk 0:02:47.2]} 10. Nd5 {[%clk 0:02:00]} 10... d6 {[%clk 0:02:39.3]} 11.
Bb6 {[%clk 0:01:48]} 11... Qa4 {[%clk 0:02:18.3]} 12. Nec3 {[%clk 0:01:34.1]}
12... Qc4 {[%clk 0:01:58.9]} 13. Nc7+ {[%clk 0:01:15.5]} 13... Kf8 {[%clk
0:01:52.4]} 14. Nxa8 {[%clk 0:01:16.3]} 14... Bg4 {[%clk 0:01:52.5]} 15. f3
{[%clk 0:01:01.2]} 15... Bc8 {[%clk 0:01:44]} 16. Be3 {[%clk 0:00:55.8]} 16...
Qe6 {[%clk 0:01:38.7]} 17. Nb6 {[%clk 0:00:55.3]} 17... h5 {[%clk 0:01:38.1]}
18. Nxc8 {[%clk 0:00:55.5]} 18... Qxc8 {[%clk 0:01:38.6]} 19. Nd5 {[%clk
0:00:55]} 19... Nd7 {[%clk 0:01:25.9]} 20. c3 {[%clk 0:00:33.6]} 20... h4 {[%clk
0:01:25.5]} 21. g4 {[%clk 0:00:33.6]} 21... Nde5 {[%clk 0:01:20.7]} 22. h3
{[%clk 0:00:31.6]} 22... Nc4 {[%clk 0:01:20.5]} 23. Bc1 {[%clk 0:00:32.1]} 23...
e6 {[%clk 0:01:20.8]} 24. Ne3 {[%clk 0:00:31.3]} 24... Nb6 {[%clk 0:01:21.4]}
25. Rb1 {[%clk 0:00:30.2]} 25... e5 {[%clk 0:01:20.9]} 26. b3 {[%clk 0:00:26.1]}
26... Nd8 {[%clk 0:01:21.5]} 27. c4 {[%clk 0:00:25.9]} 27... Ne6 {[%clk
0:01:21.9]} 28. Qxd6+ {[%clk 0:00:24.1]} 28... Kg8 {[%clk 0:01:22.1]} 29. Qxb6
{[%clk 0:00:24.7]} 29... Bf8 {[%clk 0:01:22]} 30. b4 {[%clk 0:00:22.5]} 30...
Nf4 {[%clk 0:01:22]} 31. c5 {[%clk 0:00:19.8]} 31... Qd7 {[%clk 0:01:17.3]} 32.
Nd5 {[%clk 0:00:18.4]} 32... Ne2+ {[%clk 0:01:13.4]} 33. Kh2 {[%clk 0:00:15.9]}
33... Bg7 {[%clk 0:01:03.8]} 34. Be3 {[%clk 0:00:13.3]} 34... Qa4 {[%clk
0:00:54.7]} 35. Nf6+ {[%clk 0:00:10.2]} 35... Bxf6 {[%clk 0:00:51.8]} 36. Qxf6
{[%clk 0:00:10.6]} 36... Qxa2 {[%clk 0:00:51.5]} 37. Qxe5 {[%clk 0:00:11.3]}
37... Kh7 {[%clk 0:00:51]} 38. Bd4 {[%clk 0:00:11.4]} 38... Rg8 {[%clk
0:00:50.5]} 39. Qf6 {[%clk 0:00:11.1]} 39... g5 {[%clk 0:00:38.1]} 40. Rb2
{[%clk 0:00:11.5]} 40... Qc4 {[%clk 0:00:36.8]} 41. Rxe2 {[%clk 0:00:10.7]}
41... a5 {[%clk 0:00:09.4]} 42. bxa5 {[%clk 0:00:08.5]} 42... Qb3 {[%clk
0:00:09.1]} 43. Ref2 {[%clk 0:00:07.1]} 43... Qc4 {[%clk 0:00:07.7]} 44. Rb1
{[%clk 0:00:05.4]} 44... b5 {[%clk 0:00:04.2]} 45. cxb6 {[%clk 0:00:05.6]} 1-0